lending/lending_fUSD_20240908
["ID","MTS","AMOUNT","RATE_DAILY","PERIOD"]
[337538544,1725785432116,-150.0,0.00014192,2]
[337538546,1725785432125,-150.0,0.00014199,2]
[337538547,1725785432136,-422.19,0.000142,2]
[337538549,1725785432147,-752.34,0.000142,2]
[337538550,1725785432156,-422.19,0.000142,2]
[337538552,1725785432166,-752.34,0.000142,2]
[337538554,1725785432175,-422.19,0.000142,2]
[337538555,1725785432185,-752.34,0.000142,2]
[337538556,1725785432195,-422.19,0.000142,2]
[337538557,1725785432206,-752.34,0.000142,2]
[337538558,1725785432215,-422.19,0.000142,2]
[337538559,1725785432225,-752.34,0.000142,2]
[337538560,1725785432234,-422.19,0.000142,2]
[337538561,1725785432244,-752.34,0.000142,2]
[337538562,1725785432253,-329.07,0.000142,2]
[337538563,1725785432262,-752.34,0.000142,2]
[337538564,1725785432272,-752.34,0.000142,2]
[337538565,1725785432281,-150.0,0.00014278,2]
[337538566,1725785432290,-150.0,0.00014278,2]
[337538567,1725785432299,-150.0,0.00014278,2]
[337538568,1725785432308,-427.56,0.00014278,2]
[337538569,1725785432318,-427.56,0.00014278,2]
[337538570,1725785432327,-150.0,0.00014278,2]
[337538571,1725785432336,-150.0,0.00014278,2]
[337538572,1725785432345,-150.0,0.00014278,2]
[337538573,1725785432354,-150.0,0.00014278,2]
[337538574,1725785432363,-150.0,0.00014278,2]
[337538575,1725785432373,-427.56,0.00014278,2]
[337538576,1725785432382,-427.56,0.00014278,2]
[337538577,1725785432391,-150.0,0.00014278,2]
[337538578,1725785432400,-150.0,0.00014278,2]
[337538579,1725785432409,-150.0,0.00014278,2]
[337538580,1725785432418,-427.56,0.00014278,2]
[337538581,1725785432427,-864.14,0.00014278,2]
[337538582,1725785432436,-300.0,0.00014278,2]
[337538583,1725785432445,-150.0,0.00014278,2]
[337538584,1725785432454,-150.0,0.00014278,2]
[337538585,1725785432464,-150.99,0.00014288,2]
[337538586,1725785432473,-173.62,0.00014302,2]
[337538587,1725785432482,-180.49,0.00014335,2]
[337538588,1725785432491,-1900.0,0.00014377,2]
[337538589,1725785432500,-1921.0,0.00014377,2]
[337538590,1725785432510,-3341.0,0.00014377,2]
[337538591,1725785432519,-248.0,0.00014377,2]
[337538592,1725785432528,-805.0,0.00014377,2]
[337538593,1725785432536,-1130.0,0.00014377,2]
[337538594,1725785432545,-1145.0,0.00014377,2]
[337538595,1725785432555,-289.0,0.00014377,2]
[337538596,1725785432563,-5856.0,0.00014377,2]
[337538597,1725785432572,-9307.0,0.00014377,2]
[337538598,1725785432582,-420.66956483,0.00014644,2]
[337538599,1725785432590,-1122.32574152,0.00014789,2]
[337538600,1725785432599,-4834.98181579,0.0001487,2]
[337538601,1725785432609,-981.41688261,0.00014886,2]
[337538602,1725785432618,-981.41688254,0.00014888,2]
[337538603,1725785432627,-981.41688254,0.00014889,2]
[337538604,1725785432637,-1431.3267,0.0001489,2]
[337538605,1725785432646,-3124.069,0.0001489,2]
[337538606,1725785432655,-3678.4285,0.0001489,2]
[337538607,1725785432664,-194.7381,0.0001489,2]
[337538608,1725785432673,-2500.0,0.0001489,2]
[337538609,1725785432682,-981.41688254,0.00014891,2]
[337538610,1725785432691,-981.41688254,0.00014892,2]
[337538611,1725785432701,-981.41688254,0.00014894,2]
[337538612,1725785432710,-981.41688254,0.00014895,2]
[337538613,1725785432720,-981.41688254,0.00014897,2]
[337538614,1725785432729,-981.41688254,0.00014898,2]
[337538615,1725785432738,-7500.0,0.00014899,2]
[337538616,1725785432747,-372.441,0.000149,2]
[337538617,1725785432757,-20680.8727,0.000149,2]
[337538618,1725785432766,-168.63863606,0.000149,2]
[337538619,1725785432775,-239.17747328,0.000149,2]
[337538620,1725785432784,-220.60246218,0.000149,2]
[337538621,1725785432793,-514.37801067,0.000149,2]
[337538622,1725785432803,-3078.32493717,0.000149,2]
[337538623,1725785432813,-981.41688254,0.000149,2]
[337538624,1725785432822,-322.35115768,0.000149,2]
[337538625,1725785432832,-408.9014,0.00014959,2]
[337538626,1725785432841,-249.37,0.0001497,3]
[337538627,1725785432850,-150.10419,0.00014973,2]
[337538628,1725785432859,-494.16168787,0.00014973,2]
[337538629,1725785432868,-73238.9194699,0.0001498,3]
[337538630,1725785432878,-150.68554574,0.00014986,2]
[337538631,1725785432887,-9154.86493374,0.00014989,3]
[337538632,1725785432896,-36220.35554585,0.0001499,3]
[337538633,1725785432920,-4096.59711232,0.0001499,3]
[337538634,1725785432931,-1390.07010212,0.0001499,3]
[337538635,1725785432943,-883.41898325,0.0001499,3]
[337538636,1725785432955,-3649.1702025,0.0001499,3]
[337538637,1725785432966,-350.0,0.0001499,3]
[337538638,1725785432999,-4670.58140367,0.0001499,3]
[337538639,1725785433010,-3345.67823061,0.0001499,3]
[337538640,1725785433040,-1075.43,0.0001499,3]
[337538641,1725785433052,-522.58091288,0.0001499,3]
[337538642,1725785433066,-2314.4383043,0.0001499,3]
[337538652,1725785437651,-150.0,0.00014377,2]
[337538653,1725785437661,-705.09885338,0.0001499,3]
[337538654,1725785437767,-18592.93228592,0.0001499,3]
[337538655,1725785437777,-152.11,0.0001499,2]
[337538656,1725785437787,-7334.96266344,0.0001499,3]
[337538657,1725785437799,-504.3514221,0.0001499,3]
[337538658,1725785437815,-5231.0,0.0001499,3]
[337538659,1725785437880,-1078.0,0.00014377,2]
[337538660,1725785437890,-2973.57485311,0.0001499,3]
[337538661,1725785437929,-2146.17360397,0.0001499,3]
[337538662,1725785437983,-285.25437,0.0001499,3]
[337538833,1725785439714,-31876.44022298,0.0001499,3]
[337538835,1725785439724,-726.4942005,0.0001499,2]
[337538837,1725785439734,-745.1446976,0.0001499,2]
[337538853,1725785439744,-763.7951947,0.0001499,2]
[337538855,1725785439912,-782.4456917,0.0001499,2]
[337538857,1725785439922,-801.0961888,0.0001499,2]
[337538858,1725785439932,-1347.7142465,0.0001499,2]
[337538859,1725785439941,-1382.3126515,0.0001499,2]
[337538860,1725785439951,-1416.9110566,0.0001499,2]
[337538861,1725785439961,-1451.5094616,0.0001499,2]
[337538862,1725785439971,-1486.1078666,0.0001499,2]
[337538863,1725785439980,-159.2420674,0.0001499,2]
[337538864,1725785439990,-163.3713497,0.0001499,2]
[337538865,1725785439999,-167.500632,0.0001499,2]
[337538866,1725785440009,-171.6299144,0.0001499,2]
[337538867,1725785440019,-175.7591967,0.0001499,2]
[337538868,1725785440030,-162.95633952,0.0001499,2]
[337538869,1725785440039,-162.95633952,0.0001499,2]
[337538870,1725785440049,-162.95633952,0.0001499,2]
[337538871,1725785440061,-152.11,0.0001499,2]
[337538872,1725785440071,-707.8437035,0.00014993,2]
[337538873,1725785440081,-1313.1158415,0.00014993,2]
[337538874,1725785440090,-554.67013019,0.00014999,2]
[337538875,1725785440101,-500.0,0.00014999,2]
[337538876,1725785440111,-500.0,0.00014999,2]
[337538877,1725785440120,-456.99543288,0.00014999,2]
[337538878,1725785440130,-300.02,0.00014999,2]
[337538879,1725785440140,-5802.12857323,0.00014999,2]
[337538880,1725785440150,-1067.03717542,0.00014999,5]
[337538881,1725785440161,-1067.03717539,0.00014999,5]
[337538882,1725785440170,-1067.03717542,0.00014999,5]
[337538883,1725785440180,-1067.03717542,0.00014999,5]
[337538884,1725785440189,-1067.03717542,0.00014999,5]
[337538885,1725785440199,-1067.03717542,0.00014999,5]
[337538886,1725785440208,-1067.03717542,0.00014999,5]
[337538887,1725785440218,-1067.03717542,0.00014999,5]
[337538888,1725785440227,-663.0,0.00015,2]
[337538889,1725785440237,-1571.36325887,0.00015,2]
[337538890,1725785440248,-460.63094984,0.00015,2]
[337538891,1725785440282,-1041.85,0.00015,2]
[337538892,1725785440315,-151326.72610617,0.00015,2]
[337538893,1725785440325,-192594.7542505,0.00015,2]
[337538894,1725785440338,-614.67814522,0.00015,2]
[337538898,1725785440407,-8303.82849299,0.00015,2]
[337538899,1725785441940,159.71,0.00010959,2]
[337538901,1725785442695,-1125190.24013883,0.00015,2]
[337538902,1725785442714,-2500.0,0.00015,2]
[337538903,1725785442760,-12386.30117644,0.00015,2]
[337538904,1725785442784,-559.40606601,0.00015,2]
[337538905,1725785442803,-680.3546727,0.00015,2]
[337538906,1725785442821,-764.825,0.00015,2]
[337538907,1725785442893,-277.95,0.00015,2]
[337538908,1725785442941,-509.14674964,0.00015,2]
[337538909,1725785443298,-8140.2985015,0.00015,2]
[337538910,1725785443315,-1490.79089986,0.00015,2]
[337538911,1725785443333,-772.82854254,0.00015,2]
[337538912,1725785443350,-6655.27794624,0.00015,2]
[337538913,1725785443367,-294.14994472,0.00015,2]
[337538914,1725785443433,-56781.47980791,0.00015,2]
[337538915,1725785443450,-256390.64329275,0.00015,2]
[337538924,1725785446499,-752.34,0.000142,2]
[337538925,1725785446509,-1818.07893268,0.00015,2]
[337538926,1725785446520,-627.29709413,0.00015,2]
[337538927,1725785446532,-4020.25493717,0.00015,2]
[337538928,1725785447031,-103289.98667928,0.00015,2]
[337538929,1725785840543,-434.57,0.00012022,2]
[337538930,1725785921768,155.82,0.00010959,2]
[337538931,1725786002185,285.42928646,0.00010959,2]
[337538933,1725786319108,412.84,0.00011541,2]
[337538934,1725786482259,197.6,0.00010959,2]
[337538947,1725786631845,-1329.782875,0.00013349,2]
[337538948,1725786631855,-1000.0,0.00013397,2]
[337538949,1725786631866,-250.0,0.00013417,2]
[337538950,1725786631876,-802.28,0.0001351,2]
[337538951,1725786631886,-154.59,0.00013542,2]
[337538952,1725786631897,-150.0,0.00013542,2]
[337538953,1725786631907,-167.4,0.00013581,2]
[337538954,1725786631918,-250.0,0.00013587,2]
[337538955,1725786631928,-250.0,0.00013591,2]
[337538956,1725786631938,-150.0,0.00013618,2]
[337538957,1725786631949,-300.0,0.00013618,2]
[337538958,1725786631958,-533.09530072,0.00013619,2]
[337538959,1725786631970,-255.97559429,0.00013619,2]
[337538960,1725786632026,-5567.81518432,0.00013619,2]
[337538961,1725786632072,-6933.05392067,0.00013619,2]
[337538962,1725786632083,-499.99,0.00013619,2]
[337538963,1725786632094,-8924.4,0.00013619,2]
[337538964,1725786632104,-504.52,0.00013619,2]
[337538965,1725786632113,-150.99,0.00013619,2]
[337538966,1725786632123,-851.77,0.00013665,2]
[337538967,1725786632134,-227.09,0.00013715,2]
[337538968,1725786632143,-707.76,0.00013762,2]
[337538969,1725786632154,-412.84,0.00013805,2]
[337538970,1725786632164,-154.97,0.00013807,2]
[337538971,1725786632175,-243.0,0.0001381,2]
[337538992,1725786632381,-150.2,0.00013993,2]
[337538994,1725786632392,-528.16457317,0.00014163,2]
[337538999,1725786637862,-823.91819861,0.00014163,2]
[337539000,1725786637875,-601.51186436,0.00014163,2]
[337539001,1725786637982,-358.005,0.00014163,2]
[337539002,1725786638032,-1858.427974,0.00014163,2]
[337539003,1725786638044,-9484.0,0.00014163,2]
[337539004,1725786638091,-814.44476835,0.00014163,2]
[337539005,1725786638103,-1759.306153,0.00014163,2]
[337539006,1725786638114,-1900.0,0.00014173,2]
[337539007,1725786638124,-552.0,0.00014173,2]
[337539008,1725786638134,-248.0,0.00014173,2]
[337539009,1725786638144,-1130.0,0.00014173,2]
[337539010,1725786638153,-3341.0,0.00014173,2]
[337539011,1725786638162,-1921.0,0.00014173,2]
[337539012,1725786638172,-443.0,0.00014173,2]
[337539013,1725786638182,-150.0,0.00014231,2]
[337539014,1725786638191,-7436.744,0.00014231,2]
[337539015,1725786638204,-150.0,0.00014278,2]
[337539016,1725786638214,-300.0,0.00014278,2]
[337539017,1725786638223,-316.16599343,0.0001463,2]
[337539018,1725786638232,-243.0,0.0001477,2]
[337539019,1725786638242,-152.0,0.00014771,3]
[337539020,1725786638251,-213.9725,0.000148,2]
[337539021,1725786638260,-1483.7165,0.0001485,2]
[337539023,1725786638269,-1972.7695,0.0001489,2]
[337539025,1725786638279,-4177.048,0.0001489,2]
[337539027,1725786638288,-10742.45129003,0.000149,2]
[337539029,1725786638323,-302.5407008,0.000149,2]
[337539030,1725786638334,-3413.58673412,0.000149,2]
[337539031,1725786638345,-1070.84023227,0.000149,2]
[337539032,1725786639903,-821.63811561,0.000149,2]
[337539033,1725786639917,-8961.84762717,0.000149,2]
[337539034,1725786639927,-191.34197864,0.000149,2]
[337539035,1725786639938,-1707.03018545,0.000149,2]
[337539036,1725786639948,-150.0,0.00014923,2]
[337539037,1725786639958,-420.0,0.00014925,2]
[337539038,1725786639967,-150.0,0.00014928,2]
[337539039,1725786639976,-403.63,0.0001498,3]
[337539040,1725786639988,-336.36,0.0001498,3]
[337539041,1725786639997,-168.18,0.0001498,3]
[337539042,1725786640008,-504.54,0.0001498,3]
[337539043,1725786640018,-10298.28477062,0.0001499,3]
[337539044,1725786640122,-3925.90890146,0.0001499,3]
[337539045,1725786640134,-546.018,0.0001499,3]
[337539046,1725786640209,-14240.02300535,0.0001499,3]
[337539055,1725786642911,-317.41637575,0.0001488,2]
[337539056,1725786643137,-922.79572425,0.0001488,2]
[337539057,1725786643148,-5043.16427574,0.0001499,3]
[337539071,1725786643323,-507.53028692,0.0001499,3]
[337539072,1725786643334,-3484.0,0.0001499,3]
[337539073,1725786643346,-3125.5,0.0001499,3]
[337539074,1725786643357,-1160.60801783,0.0001499,3]
[337539075,1725786643368,-1044.08377648,0.0001499,3]
[337539076,1725786643380,-1257.99548884,0.0001499,3]
[337539077,1725786643391,-357.69482547,0.0001499,3]
[337539078,1725786643415,-319.88,0.0001499,3]
[337539079,1725786643426,-423.95581672,0.0001499,3]
[337539080,1725786643437,-9756.0,0.0001499,3]
[337539081,1725786643461,-13057.23584385,0.0001499,3]
[337539082,1725786643472,-22488.59274326,0.0001499,3]
[337539083,1725786643484,-500.0,0.0001499,3]
[337539084,1725786643495,-590.0,0.0001499,3]
[337539088,1725786645942,-711.15070639,0.0001499,3]
[337539089,1725786646056,-14674.0,0.0001499,3]
[337539094,1725786646314,-324.3488207,0.00014899,2]
[337539096,1725786646324,-109.83581271,0.0001499,3]
[337539117,1725786689561,750.0,0.00011,2]
[337539118,1725786692989,-800.0,0.00013,2]
[337539122,1725786995358,158.47,0.00010959,2]
[337539124,1725787378581,498.79918492,0.0001,2]
[337539125,1725787511387,264.77805218,0.00010959,2]
[337539126,1725787511416,239.76194782,0.00010959,2]
[337539127,1725787513280,371.55,0.00012141,2]
[337539128,1725787525463,971.0672539,0.000108,2]
[337539129,1725787675834,504.54,0.00010959,2]
[337539130,1725787732681,-7788.98091816,0.00013,2]
[337539133,1725787732739,-821.33013465,0.00013,2]
[337539143,1725787832104,-286.18192272,0.00012999,2]
[337539144,1725787832116,-13.81807728,0.00012999,2]
[337539145,1725787832126,-5927.64192272,0.00013,2]
[337539155,1725787838151,-619424.67100759,0.00013,2]
[337539156,1725787838165,-150.0,0.00013789,2]
[337539157,1725787838174,-250.0,0.00013794,2]
[337539158,1725787838183,-80416.71605874,0.000138,3]
[337539159,1725787838265,-96821.93331126,0.000138,3]
[337539160,1725787838274,-341.7643608,0.00013899,2]
[337539161,1725787838283,-27353.4472473,0.000139,3]
[337539162,1725787838293,-154.97,0.00013916,2]
[337539163,1725787838302,-800.0,0.00013988,2]
[337539164,1725787838312,-171.32,0.00014059,2]
[337539165,1725787838323,-425.88,0.00014059,2]
[337539166,1725787838332,-200.0,0.00014074,2]
[337539167,1725787838342,-420.0,0.00014256,2]
[337539168,1725787838351,-371.55,0.00014405,2]
[337539169,1725787838361,-316.16599343,0.00014531,2]
[337539170,1725787838371,-150.0,0.0001457,2]
[337539171,1725787838381,-13676.7236236,0.0001477,3]
[337539172,1725787838390,-10770.0,0.0001478,2]
[337539173,1725787838399,-1236.43042,0.0001478,2]
[337539174,1725787838410,-6650.96997138,0.000149,2]
[337539175,1725787838421,-247.16,0.00014957,2]
[337539176,1725787838431,-41030.1708709,0.0001497,3]
[337539177,1725787838441,-17624.76616449,0.0001498,3]
[337539180,1725787838628,-5779.81155884,0.0001498,3]
[337539184,1725787838697,-2006.92451335,0.0001498,3]
[337539188,1725787840209,-1344.84926865,0.0001498,3]
[337539189,1725787840272,-597.09574197,0.0001498,3]
[337539190,1725787840282,-499.43181353,0.0001498,3]
[337539191,1725787840294,-3422.0802614,0.0001498,3]
[337539192,1725787840613,-104628.36954694,0.0001498,3]
[337539193,1725787840624,-27420.64794401,0.0001498,3]
[337539194,1725787840670,-765.68138899,0.0001498,3]
[337539196,1725787843147,-301.616,0.0001498,3]
[337539197,1725787843158,-2541.3138532,0.0001498,3]
[337539198,1725787843169,-827.30933768,0.0001498,3]
[337539199,1725787843180,-816.38078983,0.0001498,3]
[337539200,1725787843191,-935.12,0.0001498,3]
[337539201,1725787843263,-895.78987325,0.0001498,3]
[337539202,1725787843274,-1289.86282943,0.0001498,3]
[337539203,1725787843286,-432.89653833,0.0001498,3]
[337539204,1725787843299,-1117.28317245,0.0001498,3]
[337539205,1725787843310,-341.04,0.0001498,3]
[337539206,1725787843321,-709.17,0.0001498,3]
[337539207,1725787843332,-344.15325991,0.0001498,3]
[337539208,1725787843786,-630.11740015,0.0001498,3]
[337539209,1725787843819,-14460.26547633,0.0001498,3]
[337539210,1725787843831,-1098.75051472,0.0001498,3]
[337539211,1725787843844,-12842.43697201,0.0001498,3]
[337539212,1725787843855,-412.1753019,0.0001498,3]
[337539213,1725787843866,-531.41909845,0.0001498,3]
[337539214,1725787843877,-1023.82317081,0.0001498,3]
[337539215,1725787843899,-1103.1653179,0.0001498,3]
[337539216,1725787843910,-2020.12,0.0001498,3]
[337539217,1725787843921,-363.33683964,0.0001498,3]
[337539218,1725787843932,-952.1745213,0.0001498,3]
[337539219,1725787843944,-339.37306589,0.0001498,3]
[337539220,1725787843965,-4445.23740939,0.0001498,3]
[337539240,1725787846396,-577.82500001,0.0001498,3]
[337539241,1725787977196,156.36,0.00010959,2]
[337539242,1725788289364,487.03243895,0.0001,2]
[337539243,1725788331283,700.0,0.00012,2]
[337539244,1725788496120,750.0,0.00011,2]
[337539246,1725788581868,407.31,0.00012029,2]
[337539251,1725788997685,155.82,0.00010959,2]
[337539287,1725789032455,-576.02,0.00013,2]
[337539288,1725789032467,-223.98,0.00013,2]
[337539290,1725789032478,-250.0,0.00013778,2]
[337539292,1725789032491,-1575.61138198,0.000138,2]
[337539294,1725789032500,-154.97,0.00013804,2]
[337539296,1725789032510,-640.0,0.00013848,2]
[337539298,1725789032520,-197.73,0.00013909,2]
[337539300,1725789032530,-306.61,0.00013926,2]
[337539302,1725789032541,-360.0,0.00013945,2]
[337539303,1725789032550,-150.0,0.00013973,2]
[337539304,1725789032562,-180.1544599,0.00014,2]
[337539313,1725789038236,-319.8455401,0.00014,2]
[337539315,1725789038246,-172.56169212,0.00014,2]
[337539316,1725789038257,-290.62464635,0.00014,2]
[337539317,1725789038330,-36.81366153,0.00014,2]
[337539318,1725789038339,-500.0,0.00014,2]
[337539319,1725789038348,-500.0,0.00014,2]
[337539320,1725789038357,-500.0,0.00014,2]
[337539321,1725789038367,-500.0,0.00014,2]
[337539322,1725789038376,-500.0,0.00014,2]
[337539323,1725789038385,-500.0,0.00014,2]
[337539324,1725789038394,-416.4,0.00014,2]
[337539325,1725789038403,-437.24,0.00014,2]
[337539326,1725789038412,-640.94270178,0.0001425,2]
[337539327,1725789038421,-407.31,0.00014292,2]
[337539328,1725789038430,-150.0,0.00014564,2]
[337539329,1725789038439,-317.94117837,0.00014566,2]
[337539330,1725789038475,-310.76682163,0.00014566,2]
[337539331,1725789038484,-1558.977,0.00014566,2]
[337539332,1725789038496,-1921.0,0.00014566,2]
[337539333,1725789038505,-757.49,0.00014566,2]
[337539334,1725789038514,-150.0,0.00014566,2]
[337539335,1725789038523,-150.0,0.00014566,2]
[337539336,1725789038533,-2885.43,0.00014579,2]
[337539337,1725789038542,-316.50232,0.00014676,2]
[337539338,1725789038551,-2853.04301751,0.00014775,2]
[337539339,1725789038563,-1525.88348218,0.00014775,2]
[337539340,1725789038575,-324.58299937,0.00014775,2]
[337539341,1725789038608,-12477.10452715,0.00014775,2]
[337539342,1725789038620,-36915.1026447,0.00014775,2]
[337539343,1725789038629,-470.21441884,0.0001488,2]
[337539344,1725789038639,-7399.9752,0.0001489,2]
[337539345,1725789038649,-2139.003,0.0001489,2]
[337539346,1725789038659,-333.38614414,0.00014899,2]
[337539347,1725789038668,-187.67243642,0.000149,2]
[337539348,1725789038678,-1030.35868,0.00014957,2]
[337539349,1725789038688,-6318.84413812,0.0001498,3]
[337539352,1725789040431,-1048.93834983,0.00013848,2]
[337539353,1725789040443,-485.49336975,0.00013848,2]
[337539354,1725789040452,-1260.83903805,0.0001498,3]
[337539355,1725789040463,-4170.03465609,0.0001498,3]
[337539356,1725789040475,-10400.0,0.0001498,3]
[337539357,1725789040500,-28860.59698709,0.0001498,3]
[337539358,1725789040512,-27235.95412705,0.0001498,3]
[337539359,1725789040522,-151.67,0.0001498,2]
[337539360,1725789040531,-37064.0221325,0.0001499,3]
[337539361,1725789040541,-200.0,0.0001499,2]
[337539362,1725789040550,-200.0,0.0001499,2]
[337539363,1725789040560,-90600.9429906,0.0001499,3]
[337539364,1725789040570,-199877.62588984,0.0001499,3]
[337539365,1725789040615,-88018.09762873,0.0001499,3]
[337539366,1725789040652,-1399.79399091,0.0001499,3]
[337539367,1725789040663,-1009.71667059,0.0001499,3]
[337539368,1725789040674,-3643.76924937,0.0001499,3]
[337539369,1725789040762,-2946.68335152,0.0001499,3]
[337539370,1725789040779,-1883.92436493,0.0001499,3]
[337539371,1725789040791,-573.37954002,0.0001499,3]
[337539389,1725789043854,-470.21441879,0.00014882,2]
[337539390,1725789043863,-272.28558121,0.0001499,3]
[337539391,1725789043875,-11876.33293888,0.0001499,3]
[337539392,1725789043971,-9028.92948597,0.0001499,3]
[337539394,1725789046846,-3391.41270362,0.0001499,3]
[337539395,1725789046858,-9612.48169817,0.0001499,3]
[337539396,1725789494111,187.72,0.00010959,2]
[337539397,1725789578830,463.16,0.00011948,2]
[337539398,1725790018174,195.82,0.00010959,2]
[337539399,1725790073148,468.84,0.00011944,2]
[337539400,1725790231435,-156.88,0.00013819,2]
[337539401,1725790231445,-220.397724,0.00013829,2]
[337539402,1725790231456,-29.602276,0.00013829,2]
[337539403,1725790231465,-250.0,0.00013829,2]
[337539404,1725790231475,-166.47984644,0.00013852,2]
[337539405,1725790231530,-83.52015356,0.00013852,2]
[337539406,1725790231541,-512.0,0.00013853,2]
[337539407,1725790231552,-361.39,0.00013862,2]
[337539408,1725790231561,-116.84199482,0.00013864,2]
[337539409,1725790231623,-5087.66800518,0.00013864,2]
[337539410,1725790231633,-241.81,0.00013872,2]
[337539411,1725790231642,-157.62,0.00013874,2]
[337539412,1725790231651,-158.19,0.00013881,2]
[337539413,1725790231661,-488.0,0.00013936,2]
[337539414,1725790231670,-171.32,0.00013955,2]
[337539415,1725790231680,-468.84,0.00014208,2]
[337539416,1725790231689,-329.36,0.00014212,2]
[337539417,1725790231698,-430.0806329,0.00014263,2]
[337539418,1725790231710,-689.30241408,0.00014263,2]
[337539419,1725790231732,-3264.66795302,0.00014263,2]
[337539420,1725790231742,-368.8288975,0.00014636,2]
[337539422,1725790231752,-1003.50043817,0.0001469,2]
[337539423,1725790231761,-152.0,0.00014811,3]
[337539425,1725790231770,-1117.1196,0.0001484,2]
[337539427,1725790231779,-153.68796,0.0001484,2]
[337539429,1725790231788,-2303.0118,0.0001489,2]
[337539431,1725790231798,-799.36451197,0.0001489,2]
[337539433,1725790231808,-422.1155,0.0001489,2]
[337539435,1725790231818,-2500.0,0.0001489,2]
[337539437,1725790231828,-799.36451195,0.00014891,2]
[337539438,1725790231837,-799.36451195,0.00014892,2]
[337539439,1725790231848,-150.0,0.00014893,2]
[337539440,1725790231857,-799.36451195,0.00014893,2]
[337539441,1725790231870,-799.36451195,0.00014894,2]
[337539442,1725790231884,-799.36451195,0.00014896,2]
[337539443,1725790231894,-799.36451195,0.00014897,2]
[337539444,1725790231905,-799.36451195,0.00014898,2]
[337539445,1725790231914,-799.36451195,0.00014899,2]
[337539446,1725790231924,-175.02623466,0.00014899,2]
[337539447,1725790231934,-333.38614413,0.00014899,2]
[337539448,1725790231945,-799.36451195,0.000149,2]
[337539449,1725790231955,-232.36679386,0.000149,2]
[337539450,1725790231964,-150.0,0.00014908,2]
[337539451,1725790231974,-434.1207825,0.00014926,2]
[337539452,1725790231984,-175.5238322,0.00014938,2]
[337539453,1725790231994,-158.63510105,0.00014973,2]
[337539454,1725790232004,-158.98627068,0.00014973,2]
[337539455,1725790232014,-500.0,0.00014973,2]
[337539456,1725790232024,-1028.50102205,0.00014979,2]
[337539457,1725790232034,-16161.6440375,0.0001498,3]
[337539458,1725790232044,-500.0,0.00014985,2]
[337539459,1725790232053,-13675.2372625,0.00014989,3]
[337539460,1725790232063,-30285.6273496,0.00014989,3]
[337539461,1725790232073,-151.4,0.00014989,2]
[337539462,1725790232084,-1664.12512287,0.00014989,2]
[337539463,1725790232095,-40380.8364661,0.0001499,3]
[337539464,1725790232104,-292761.064379,0.0001499,3]
[337539465,1725790232115,-151.4,0.0001499,2]
[337539466,1725790232124,-151.4,0.0001499,2]
[337539467,1725790232135,-151.4,0.0001499,2]
[337539468,1725790232144,-151.4,0.0001499,2]
[337539469,1725790232154,-151.4,0.0001499,2]
[337539470,1725790232164,-151.4,0.0001499,2]
[337539471,1725790232174,-501.49882417,0.00014999,2]
[337539472,1725790232184,-556.06335157,0.00014999,2]
[337539473,1725790232193,-500.0,0.00014999,2]
[337539474,1725790232203,-500.0,0.00014999,2]
[337539475,1725790232213,-500.0,0.00014999,2]
[337539476,1725790232223,-193.58783186,0.00014999,2]
[337539477,1725790232232,-238883.69282124,0.00014999,2]
[337539478,1725790232242,-774.0,0.00015,2]
[337539479,1725790232252,-646102.67737751,0.00015,2]
[337539481,1725790237462,-688.5,0.00015,2]
[337539484,1725790237570,-1246.78593897,0.00015,2]
[337539485,1725790237582,-4718.63119141,0.00015,2]
[337539486,1725790237593,-362.78211077,0.00015,2]
[337539487,1725790237604,-502.14136276,0.00015,2]